Cogmind - Beta 12 @@@ ROGUE MODE // 2023.04.28 @ 00:42:27 Player: MAC-Bot 2145 Result: Destroyed by Y-45 Defender with Heavy Assault Rifle Performance ------------- Evolutions (2) 1000 Regions Visited (3) 600 Robots Destroyed (25) 125 Value Destroyed (719) 719 Prototype IDs (1) 20 Alien Tech Used (0) 0 Bonus (200) 200 TOTAL SCORE: 2664 Bonus ------- Pacifist 200 Cogmind --------- Core Integrity 0/550 Matter 74/300 Energy 100/100 System Corruption 1% Temperature Hot (286) Movement Core (100) Ox1 Location -8/Materials Parts ------- > --- POWER (1) -------- (None) > --- PROPULSION (3) --- (None) > --- UTILITY (5) ------ Small Storage Unit Advanced Visual Processing Unit Improved Signal Interpreter Improved Terrain Scan Processor Advanced Targeting Computer > --- WEAPON (2) ------- (None) > --- INVENTORY (8) ---- Light Nuclear Core High-capacity Storage Unit Seismic Detector Peak State ------------ > --- POWER ------------ Improved Ion Engine > --- PROPULSION ------- Carbon-fiber Leg Improved Hover Unit Cesium-ion Thruster > --- UTILITY ---------- Small Storage Unit Advanced Visual Processing Unit Improved Signal Interpreter Improved Terrain Scan Processor Advanced Targeting Computer > --- WEAPON ----------- Improved Assault Rifle Gauss Rifle > --- INVENTORY -------- Improved Ion Engine Light Nuclear Core High-capacity Storage Unit Seismic Detector Minigun [Rating: 31] Favorites ----------- Power Improved Ion Engine Engine Improved Ion Engine Propulsion Light Treads Treads Light Treads Leg Aluminum Leg Wheel Wheel Hover Unit Airjet Flight Unit Cesium-ion Thruster Utility Small Storage Unit Device Structural Scanner Storage Small Storage Unit Processor Signal Interpreter Protection Improved Power Shielding Weapon Improved Assault Rifle Energy Gun Particle Gun Energy Cannon EM Pulse Cannon Ballistic Gun Improved Assault Rifle Build | -11 -10 -9 -8 ------- Run | Jun Mat Mat Mat Slots Evolved 4 | . . 2 2 Power . | . . . . Propulsion 1 | . . . 1 Utility 3 | . . 2 1 Weapon . | . . . . Parts Attached 51 | 6 3 18 24 Power 6 | 1 . 3 2 Engine 6 | 1 . 3 2 Core . | . . . . Reactor . | . . . . Propulsion 15 | 2 2 4 7 Treads 4 | 2 . 2 . Leg 3 | . . 2 1 Wheel 2 | . 2 . . Hover 5 | . . . 5 Flight 1 | . . . 1 Utility 15 | 1 1 7 6 Device 2 | . 1 . 1 Storage 6 | 1 . 5 . Processor 6 | . . 2 4 Hackware . | . . . . Protection 1 | . . . 1 Artifact . | . . . . Weapon 15 | 2 . 4 9 Energy Gun 2 | . . 1 1 Energy Cannon 1 | . . . 1 Ballistic Gun 12 | 2 . 3 7 Ballistic Cannon . | . . . . Launcher . | . . . . Special Weapon . | . . . . Impact Weapon . | . . . . Slashing Weapon . | . . . . Piercing Weapon . | . . . . Special Melee Weapon . | . . . . Unidentified Prototypes 1 | . . 1 . Parts Lost 24 | . 2 1 21 Power 4 | . . 1 3 Propulsion 11 | . 2 . 9 Utility 3 | . . . 3 Weapon 6 | . . . 6 Highest Loss Streak 8 | . 2 1 8 To Critical Strikes . | . . . . Average Slot Usage (%) 89 | . 97 98 79 Engine 10 | . 14 10 8 Treads 9 | . 15 13 4 Leg 3 | . . 8 . Wheel 2 | . 11 . . Hover 3 | . . . 7 Flight 1 | . . . 3 Device 9 | . 12 11 6 Storage 13 | . 14 17 9 Processor 15 | . . 13 22 Protection 1 | . . . 2 Energy Gun 2 | . . 6 . Ballistic Gun 16 | . 28 15 12 Naked Turns . | . . . . Heaviest Build 24 | 13 14 21 24 Greatest Support 40 | 40 40 40 40 Greatest Overweight (x) 5 | 1 4 . 5 Average Overweight (x) . | . . . 1 Largest Inventory Capacity 20 | 8 8 20 8 Average Capacity 8 | 7 8 8 8 Most Carried 8 | 8 8 8 8 Average Carried 6 | 6 6 7 5 Final Capacity 8 | 8 8 8 8 Final Carried 8 | 6 7 8 3 Class Distribution -------------------- 84% | Mutant 8% | Skirmisher 7% | Scavenger-Mutant Dominant Class ---------------- Mutant | -10/Materials Mutant | -9/Materials Mutant | -8/Materials Resources | -11 -10 -9 -8 ----------- Run | Jun Mat Mat Mat Matter Collected 761 | 240 . 315 206 Remotely . | . . . . Salvage Created 712 | . . 355 357 Parts 50 | . . 34 16 Haulers Intercepted . | . . . . Recyclers Shooed . | . . . . Parts Field Recycled . | . . . . Retrieved Matter . | . . . . Parts Self-Destructed . | . . . . Prevented . | . . . . Kills | -11 -10 -9 -8 ------- Run | Jun Mat Mat Mat Combat Hostiles Destroyed 21 | . . 11 10 Guns 19 | . . 11 8 AOE 2 | . . . 2 Classes Destroyed 5 | . . 4 1 Watcher 4 | . . 3 1 Swarmer 11 | . . 7 4 Grunt 6 | . . 2 4 Sentry 2 | . . 2 . Hunter 2 | . . . 2 Best Kill Streak 4 | . . 4 4 Combat Bots Only 4 | . . 4 4 Max Kills in Single Turn 2 | . . 1 2 Gunslinging 1 | . . . 1 Exploded 2 | . . . 2 Melee . | . . . . Uniques/NPCs Destroyed . | . . . . Combat | -11 -10 -9 -8 -------- Run | Jun Mat Mat Mat Damage Taken 3324 | . 298 620 2406 Core 777 | . 39 173 565 Absorbed by Shields . | . . . . Redirected to Shielding 111 | . . . 111 Core Remaining (%) 80 | 100 84 56 . Volleys Fired 90 | . 4 32 54 Largest 2 | . 2 2 2 Hottest 88 | . 40 88 86 Shots Fired 163 | . 8 60 95 Gun 162 | . 8 60 94 Cannon 1 | . . . 1 Launcher . | . . . . Special . | . . . . Kinetic 133 | . 8 40 85 Thermal 20 | . . 20 . Explosive . | . . . . Electromagnetic 10 | . . . 10 Robot Hit Streak 10 | . 2 8 10 Robot Miss Streak 4 | . 3 3 4 Penetration Max . | . . . . Secondary Targets 4 | . . 2 2 Max Gunslinging Chain 1 | . . 1 1 Shots Hit Robots 105 | . 4 35 66 Core Hits 42 | . 1 17 24 Critical Kills . | . . . . Critical Parts Destroyed 2 | . . 1 1 Critical Strikes 2 | . . 1 1 Destroy 2 | . . 1 1 Melee Attacks . | . . . . Impact . | . . . . Slashing . | . . . . Piercing . | . . . . Sneak Attacks . | . . . . Combat Hostiles . | . . . . Follow-up Attacks . | . . . . Damage Inflicted 1838 | . 45 532 1261 Guns 1591 | . 41 532 1018 Cannons . | . . . . Explosions 239 | . . . 239 Melee . | . . . . Ramming 8 | . 4 . 4 Kinetic 1304 | . 41 341 922 Thermal 191 | . . 191 . Explosive 239 | . . . 239 Electromagnetic 96 | . . . 96 Impact . | . . . . Slashing . | . . . . Piercing . | . . . . Highest Corruption 3 | . 3 . 1 Average Corruption 1 | . 2 . 1 Corruption Purged . | . . . . Corruption Blocked . | . . . . Effects 5 | . 1 . 4 Message Errors 1 | . 1 . . Heat Flow Errors 2 | . . . 2 Energy Discharges 1 | . . . 1 Parts Fused 1 | . . . 1 Overload Shots . | . . . . Overflow Damage 29 | . . . 29 Projectiles . | . . . . Explosions 29 | . . . 29 Melee . | . . . . Knockbacks . | . . . . Impact . | . . . . Kinetic . | . . . . Secondary . | . . . . Self-Inflicted Damage 236 | . 2 . 234 Shots 3 | . . . 3 Rammed 4 | . 1 . 3 Targets Rammed 4 | . 1 . 3 Kicked . | . . . . Crushed . | . . . . Highest Temperature 221 | . . 151 221 Average Temperature 37 | . . 45 31 Received Heat Transfer 933 | . 63 123 747 Siege Activations . | . . . . Robots Corrupted . | . . . . Combat Hostiles . | . . . . Parts Fried . | . . . . Impact Corruptions . | . . . . Robots Melted . | . . . . Combat Hostiles . | . . . . Parts Melted 1 | . . 1 . Heat Transferred 444 | . . 444 . Parts Sabotaged . | . . . . Parts Stolen . | . . . . Parts Stripped . | . . . . Power Chain Reactions . | . . . . Missiles Intercepted . | . . . . Alert | -11 -10 -9 -8 ------- Run | Jun Mat Mat Mat Peak Influence 328 | . 51 328 301 Initial 13 | . . 13 9 Average 103 | . 16 128 132 Maximum Alert Level 1 | . . 1 1 Low Security (%) 80 | 100 100 67 80 Level 1 19 | . . 32 19 Level 2 . | . . . . Level 3 . | . . . . Level 4 . | . . . . Level 5 . | . . . . High Security . | . . . . Max Security . | . . . . Squads Dispatched 4 | . 1 . 3 Investigation 1 | . 1 . . Extermination . | . . . . Reinforcement 2 | . . . 2 Assault . | . . . . Garrison 1 | . . . 1 Intercept . | . . . . Searches Triggered . | . . . . Construction Impeded . | . . . . Haulers Reinforced . | . . . . Active Scanning Responses . | . . . . Cargo Convoy Interrupts . | . . . . Stealth | -11 -10 -9 -8 --------- Run | Jun Mat Mat Mat Distress Signals 2 | . . 1 1 Communications Jammed . | . . . . Distress Signals . | . . . . Times Spotted 50 | . 11 17 22 Peak Tracking Total 8 | . 8 5 7 Tactical Retreats 1 | . 1 . . Traps | -11 -10 -9 -8 ------- Run | Jun Mat Mat Mat Traps Triggered 5 | . 3 1 1 Indirectly . | . . . . Trap Hack Attempts . | . . . . Triggered . | . . . . Disarmed . | . . . . Reprogrammed 1 | . 1 . . Reused . | . . . . Traps Extracted . | . . . . Installed . | . . . . Triggered . | . . . . Machines | -11 -10 -9 -8 ---------- Run | Jun Mat Mat Mat Machines Disabled 8 | . . . 8 Max in Single Turn 4 | . . . 4 Machines Repaired . | . . . . Machines Sabotaged . | . . . . Overloaded Fab Kills . | . . . . Hacking | -11 -10 -9 -8 --------- Run | Jun Mat Mat Mat Machines Accessed 6 | . 2 3 1 Terminals 5 | . 2 3 . Fabricators . | . . . . Repair Stations 1 | . . . 1 Recycling Units . | . . . . Scanalyzers . | . . . . Garrison Access . | . . . . Total Hacks 14 | . 6 7 1 Successful 10 | . 5 5 . Failed 4 | . 1 2 1 Catastrophic . | . . . . Database Lockouts . | . . . . Manual . | . . . . Terminals 13 | . 6 7 . Fabricators . | . . . . Repair Stations 1 | . . . 1 Recycling Units . | . . . . Scanalyzers . | . . . . Garrison Access . | . . . . Terminal Hacks 10 | . 5 5 . Record 4 | . 2 2 . Alert Level 1 | . 1 . . Unreport Threat 1 | . . 1 . Locate Traps 2 | . 1 1 . Reprogram Traps 1 | . 1 . . Zone Layout 1 | . . 1 . Fabricator Hacks . | . . . . Repair Station Hacks . | . . . . Recycling Unit Hacks . | . . . . Scanalyzer . | . . . . Garrison Access Hacks . | . . . . Unauthorized Hacks . | . . . . Terminals . | . . . . Fabricators . | . . . . Repair Stations . | . . . . Recycling Units . | . . . . Scanalyzers . | . . . . Garrison Access . | . . . . Data Cores Recovered . | . . . . Used . | . . . . Hacking Detections 5 | . 1 3 1 Full Trace Events . | . . . . Feedback Events . | . . . . Feedback Blocked . | . . . . Robot Schematics Acquired . | . . . . Robots Built . | . . . . Authchips . | . . . . Time . | . . . . Total Robot Build Rating . | . . . . Part Schematics Acquired . | . . . . Parts Built . | . . . . Authchips . | . . . . Time . | . . . . Total Part Build Rating . | . . . . Parts Repaired . | . . . . Time . | . . . . Parts Recycled . | . . . . Recycled Matter . | . . . . Retrieved Matter . | . . . . Retrieved Components . | . . . . Parts Scanalyzed . | . . . . Part Schematics Acquired . | . . . . Parts Damaged . | . . . . Bothacking | -11 -10 -9 -8 ------------ Run | Jun Mat Mat Mat Used RIF Installer . | . . . . Robots Hacked . | . . . . Non-combat . | . . . . Combat . | . . . . Robot Hacks Applied . | . . . . Relay Couplers Released . | . . . . Fabnet Peak Effective % . | . . . . Robots Rewired . | . . . . Allies Hacked . | . . . . Hacks Repelled . | . . . . Allies | -11 -10 -9 -8 -------- Run | Jun Mat Mat Mat Total Allies . | . . . . Largest Group . | . . . . Highest-Rated Group . | . . . . Highest-Rated Ally . | . . . . Total Orders . | . . . . Ally Attacks . | . . . . Total Damage . | . . . . Kills . | . . . . Allies Corrupted . | . . . . Allies Melted . | . . . . Intel | -11 -10 -9 -8 ------- Run | Jun Mat Mat Mat Robot Analysis Total . | . . . . Derelict Logs Recovered . | . . . . Drone Launches . | . . . . Drone Recoveries . | . . . . Exploration | -11 -10 -9 -8 ------------- Run | Jun Mat Mat Mat Turns Passed 1728 | 84 317 596 731 Spaces Moved 897 | 49 181 303 364 Core 101 | 20 2 . 79 Treads 353 | 29 73 181 70 Legs 122 | . . 122 . Wheels 106 | . 106 . . Hover 203 | . . . 203 Flight 12 | . . . 12 Fastest Speed 50 | 50 90 120 52 Average Speed 135 | 133 120 143 136 Slowest Speed 300 | 160 250 160 300 Overloaded Moves . | . . . . Propulsion Burnouts . | . . . . Robots Hopped . | . . . . Cave-ins Triggered . | . . . . Exploration Rate (%) 24 | 4 39 28 28 Regions Visited 3 Branch Regions . Pre-discovered Areas . | . . . . Known Exits Taken 1 | . . 1 . Unknown Exits Taken 2 | 1 1 . . Scrap Searched . | . . . . Spaces Dug . | . . . . Terrain Destroyed 68 | . . . 68 Melee . | . . . . Projectile . | . . . . AOE 68 | . . . 68 Terrain Rammed . | . . . . Walls Destroyed . | . . . . Machines Disabled . | . . . . Actions | -11 -10 -9 -8 --------- Run | Jun Mat Mat Mat Total 1256 | 68 275 407 506 Wait 148 | . 83 24 41 Move 894 | 48 180 302 364 Hop . | . . . . Pick Up 49 | 13 2 18 16 Fast Attach 1 | . . 1 . Attach 35 | 6 3 5 21 Detach 2 | . 2 . . Swap 15 | . . 12 3 Drop 18 | 1 . 13 4 Fire 90 | . 4 32 54 Melee . | . . . . Ram 4 | . 1 . 3 Kick . | . . . . Crush . | . . . . Escape Stasis . | . . . . Rewire . | . . . . Trap . | . . . . Miscellaneous . | . . . . Route ------- -11/Junkyard -10/Materials -9/Materials -8/Materials History --------- Turn | Location | Event 9 | -11/Junkyard | Discovered new exit (range 15) 85 | -11/Junkyard | Entered Materials 306 | -10/Materials | Build established: Mutant 380 | -10/Materials | Discovered new exit (range 16) 402 | -10/Materials | Entered another Materials area 402 | -9/Materials | Evolved 2 slots: Utility x2 887 | -9/Materials | Discovered new exit (range 12) 930 | -9/Materials | Identified exit to Materials 998 | -9/Materials | Entered another Materials area 998 | -8/Materials | Evolved 2 slots: Propulsion x1, Utility x1 1204 | -8/Materials | Lost 5 parts (1p2n1u1w) 1430 | -8/Materials | Lost 5 parts (2n2u1w) 1480 | -8/Materials | Core integrity fell below 50% 1638 | -8/Materials | Garrison activated, responded to threat 1684 | -8/Materials | Core integrity fell below 20% 1724 | -8/Materials | Lost 8 parts (2p3n3w) 1729 | -8/Materials | Destroyed by Y-45 Defender with Heavy Assault Rifle Last Messages --------------- K-01 Serf cleans the Fusion Modulator. Carbon-fiber Leg destroyed. Critical hit (Burn: +37). M-28 Smith repairs Y-45 Defender. K-01 Serf cleans the Fusion Modulator. K-01 Serf collects debris. Imp. Assault Rifle destroyed. K-01 Serf collects debris. Cesium-ion Thruster destroyed. M-28 Smith repairs G-47 Trooper. K-01 Serf collects debris. Imp. Ion Engine destroyed. Critical hit (Burn: +37). W-25 Informer sends out distress signal. Critical hit (Burn: +37). System corrupted: Heat flow error (+243). Minigun destroyed. Slammed into Y-45 Defender. System corrupted: Heat flow error (+277). Slammed into Y-45 Defender. Map ----- +----------------------------------------------------+ | ????????#""" # ####### #??? | | ????????#""" + #??? | | ????????#""" # #########??? | | ????????# ##+###########?? | | ????????#! = # #?? | | ????????# # """ " #?? | | ????????#######! """ ! #?? | | ??????????????# """ ""% #?? | | ??????????????# #?? | | ????????????######+#########?? | | ????????????+ #?????????? | | ????????????##### #???####### | | ????????????????# #??## """ # | | ????????????????# #??# "T" # | | ???????????????## ##??# # | | ??#####+######## #??# !! # | | #??# !! # | | ?????# #??# !! # | | ?????# #####+## #??# # | | ???????????????## ##??# """ # | | ????????????????# #???# """ # | | ????????????????# #???# """ # | | ????????????????# #???# # | | ???????????????## ##??# # | | ?????# ####### ! ######+### | | ?????# Y @ #?? | | ? | T Y #?? | | ? ######## ##### #?? | | ?+#+???????????##+###???# #?? | | ????????????????????????# #?? | | ????????????????????????####?? | | ?????????????????????????????? | | ?????????????????????????????? | | ?????????????????????????????? | | ?????????????????????????????? | | ?????????????????????????????? | | ?????????????????????????????? | | ?????????????????????????????? | | ?????????????????????????????? | | ?????????????????????????????? | | ?????????????????????????????? | | ?????????????????????????????? | | ?????????????????????????????? | | ?????????????????????????????? | | ?????????????????????????????? | | | | | | | | | | | +----------------------------------------------------+ Best States ------------- Heat Dissipation 31 Energy Generation 12 Energy Capacity 415 Matter Stores 300 Matter Capacity 300 Sight Range 20 Robot Scan Range 14 Terrain Scan Density 110 Power Shielding 66 Evasion (%) 55 Targeting Accuracy 8 Recoil Reduction 2 Item Schematics ----------------- None Robot Schematics ------------------ None Fabricated ------------ Nothing Alien Tech Used ----------------- None Achievements -------------- None Challenges ------------ None Game ------ Seed ThunderHeartCapacitor Manual? 0 Play Time 00:38:07 Cumulative 53.8 hours Start 2023.04.28 @ 00:03:51 End 2023.04.28 @ 00:42:27 Sessions 1 Manual Loads 0 Difficulty Rogue Special Mode None Game No. 41 Rogue 41 Adventurer 0 Explorer 0 Win Type - Total 0 Types 0/0/0/0/0/0/0/0/0 Lore% 19 Gallery% 19 Achievement% 19 Wizard Run 0 Options --------- ASCII 0 Keyboard 0 Movement Numpad Keybinds 0 Fullscreen 1 Font 18/SmallcapsGlow Map View 76x50 Tactical HUD 0 Map Filters NONE Filters NONE Steam 1 RUN: fd3768bc-e969-4622-b56d-2bef8c203138